fUSD/lending_fUSD_20240501
["ID","MTS","AMOUNT","RATE_DAILY","PERIOD"]
[325186858,1714557040629,-12619.37941851,0.00012997,2]
[325186860,1714557040640,-157.68895284,0.00012997,2]
[325186862,1714557040650,-320.02810305,0.00012997,2]
[325186864,1714557040659,-165.20489312,0.00012997,2]
[325186866,1714557040668,-156.85773528,0.00012997,2]
[325186868,1714557040677,-500.0,0.00012997,2]
[325186870,1714557040687,-251.06996746,0.00012997,2]
[325186872,1714557040696,-407.19761892,0.00012997,2]
[325186874,1714557040706,-155.58485218,0.00012997,2]
[325186876,1714557040715,-241.43405171,0.00012998,2]
[325186878,1714557040724,-3081.49272572,0.00012998,2]
[325186880,1714557040733,-1100.17946851,0.00012998,2]
[325186882,1714557040743,-204.0929013,0.00012998,2]
[325186884,1714557040752,-2186.63141825,0.00012999,2]
[325186886,1714557040762,-184.38545913,0.00012999,2]
[325186888,1714557040771,-67610.47009546,0.00012999,2]
[325186890,1714557040783,-7042.92,0.00012999,2]
[325186895,1714557040818,-358.9537836,0.00012999,2]
[325186901,1714557040859,-622.21983407,0.00012999,2]
[325186903,1714557040872,-430.1237512,0.00012999,2]
[325186905,1714557040884,-414.34868554,0.00012999,2]
[325186907,1714557040896,-709.08266212,0.00012999,2]
[325186909,1714557040907,-310.24010705,0.00012999,2]
[325186912,1714557040918,-836.87762474,0.00012999,2]
[325186914,1714557040930,-330.98596817,0.00012999,2]
[325186916,1714557040942,-47018.75766705,0.00012999,2]
[325186924,1714557041008,-1087.29,0.00012999,2]
[325186926,1714557041019,-3351.74839999,0.00012999,2]
[325186947,1714557041200,-28918.35916555,0.00012999,2]
[325186950,1714557041215,-1853.6965244,0.00012999,2]
[325186961,1714557041310,161.10225918,0.00010297,2]
[325186966,1714557041348,-552.79647091,0.00012999,2]
[325186968,1714557041362,-1062.35456196,0.00012999,2]
[325186971,1714557041374,-1780.90789548,0.00012999,2]
[325186973,1714557041389,-3026.70217367,0.00012999,2]
[325186975,1714557041401,-345.91147168,0.00012999,2]
[325186978,1714557041418,-3989.74519,0.00012999,2]
[325186981,1714557041430,-2887.44515238,0.00012999,2]
[325186983,1714557041442,-818231.09157187,0.00012999,2]
[325186985,1714557041453,-1568.34307791,0.00012999,2]
[325186987,1714557041462,-2039935.00430082,0.00013,2]
[325186989,1714557041474,-536.6504,0.00013,2]
[325186992,1714557041487,-10329.3,0.00013,2]
[325186994,1714557041500,-799.464547,0.00013,2]
[325186996,1714557041512,-373.33632689,0.00013,2]
[325186999,1714557041526,-1600.96986562,0.00013,2]
[325187000,1714557041538,-405.28749943,0.00013,2]
[325187225,1714557044294,-391.82705526,0.00012885,2]
[325187227,1714557044306,-3865.81,0.00012885,2]
[325187230,1714557044317,-1032.20097925,0.00012885,2]
[325187232,1714557044328,-981.30311709,0.00012885,2]
[325187235,1714557044339,-494.33920324,0.00012885,2]
[325187238,1714557044351,-412.05918344,0.00012885,2]
[325187240,1714557044364,-322.46046172,0.00012885,2]
[325187242,1714557044373,-337.09803003,0.00013,2]
[325187248,1714557044575,-311.7686698,0.00013,2]
[325187249,1714557044588,-449046.2428694,0.00013,2]
[325187250,1714557044599,-384.34999965,0.00013,2]
[325187251,1714557044611,-557.84755322,0.00013,2]
[325187252,1714557044622,-1516.6,0.00013,2]
[325187253,1714557044633,-709.5125325,0.00013,2]
[325187254,1714557044647,-681.83583395,0.00013,2]
[325187255,1714557044659,-3200.0,0.00013,2]
[325187256,1714557044672,-732.6396675,0.00013,2]
[325187257,1714557044685,-28469.27125039,0.00013,2]
[325187258,1714557044698,-934.36836134,0.00013,2]
[325187259,1714557044711,-2870.0,0.00013,2]
[325187260,1714557044722,-6035.62203971,0.00013,2]
[325187261,1714557044734,-3111.51171462,0.00013,2]
[325187340,1714557045913,-603.2361818,0.00013,2]
[325187341,1714557045926,-404.90404623,0.00013,2]
[325187342,1714557046066,-174925.1734668,0.00013,2]
[325187343,1714557046078,-1396.0399734,0.00013,2]
[325187344,1714557046089,-17590.60099035,0.00013,2]
[325187345,1714557046101,-26187.87022081,0.00013,2]
[325187346,1714557046111,-625.0,0.00013,2]
[325187347,1714557046263,-788.04861393,0.00013,2]
[325187348,1714557046274,-2102.17762573,0.00013,2]
[325187349,1714557046287,-485.72,0.00013,2]
[325187350,1714557046301,-1148.74911548,0.00013,2]
[325187351,1714557046347,-294.83500865,0.00012999,2]
[325187352,1714557046356,-313.7804824,0.00013,2]
[325187353,1714557046367,-423.95965052,0.00013,2]
[325187435,1714557062278,976.84291943,0.00010297,2]
[325187436,1714557094168,-2000.0,0.00010297,2]
[325187437,1714557095588,-2000.0,0.00010297,2]
[325187438,1714557096960,-2000.0,0.00010297,2]
[325187439,1714557108234,-1000.0,0.00010297,2]
[325187443,1714557411878,150.0,9.551e-05,2]
[325187444,1714557411900,41.01,9.551e-05,2]
[325187445,1714557658694,-155.0,0.00010295,2]
[325187446,1714557658721,-316.0,0.00010296,2]
[325187447,1714557658746,-288911.76584021,0.00010297,2]
[325187448,1714557658770,-283.42,0.00011469,2]
[325187449,1714557658795,-973.56,0.00011671,2]
[325187450,1714557658820,-180.61,0.00011671,2]
[325187451,1714557658843,-704.62,0.00011765,2]
[325187452,1714557658867,-164.7,0.00011778,3]
[325187453,1714557658892,-336.45,0.00011851,2]
[325187454,1714557658917,-164.7,0.0001189,3]
[325187455,1714557658941,-165.27,0.00011966,2]
[325187456,1714557658968,-166.45,0.00011982,2]
[325187457,1714557658991,-312.23,0.00011982,2]
[325187458,1714557659015,-2139.0,0.00012,2]
[325187459,1714557659038,-5000.0,0.00012,2]
[325187460,1714557659064,-164.7,0.00012001,3]
[325187461,1714557659089,-14944.59,0.00012055,2]
[325187462,1714557659113,-164.7,0.00012112,3]
[325187463,1714557659137,-250.0,0.00012114,2]
[325187464,1714557659161,-154.74,0.00012205,2]
[325187465,1714557659185,-164.7,0.00012223,3]
[325187466,1714557659210,-164.7,0.00012334,3]
[325187467,1714557659234,-389.35178471,0.00012348,2]
[325187468,1714557659452,-502.66808472,0.00012348,2]
[325187469,1714557659476,-911.32,0.000124,2]
[325187470,1714557659499,-13154.06,0.000124,2]
[325187471,1714557659523,-164.7,0.00012445,3]
[325187472,1714557659546,-164.7,0.00012556,3]
[325187473,1714557659569,-164.7,0.00012667,3]
[325187474,1714557659592,-331.56765834,0.00012769,2]
[325187475,1714557659615,-164.7,0.00012778,3]
[325187476,1714557659638,-152862.46213937,0.000128,2]
[325187477,1714557659661,-1000.0,0.000128,2]
[325187478,1714557659686,-287.71565312,0.00012869,2]
[325187479,1714557659708,-40301.22769543,0.00012878,2]
[325187480,1714557659735,-164.7,0.00012889,3]
[325187481,1714557659759,-1000.0,0.00012895,2]
[325187482,1714557659782,-500.0,0.00012895,2]
[325187483,1714557659806,-1000.0,0.00012896,2]
[325187484,1714557659830,-500.0,0.00012896,2]
[325187485,1714557659853,-7500.0,0.00012899,2]
[325187486,1714557659875,-961.12177568,0.00012899,2]
[325187487,1714557659899,-170.89694307,0.000129,2]
[325187488,1714557659926,-377.92006347,0.000129,2]
[325187489,1714557659953,-1151.68896583,0.000129,2]
[325187490,1714557659975,-1000.0,0.000129,2]
[325187491,1714557659999,-168.91,0.00012917,2]
[325187492,1714557660022,-6971.35793369,0.0001298,2]
[325187493,1714557660046,-397.6973203,0.00012987,2]
[325187494,1714557660070,-371.6942899,0.00012987,2]
[325187495,1714557660094,-345.6912595,0.00012987,2]
[325187496,1714557660118,-319.6882291,0.00012987,2]
[325187497,1714557660141,-293.6851987,0.00012987,2]
[325187498,1714557660165,-267.6821682,0.00012987,2]
[325187499,1714557660192,-1183.48858702,0.0001299,2]
[325187500,1714557660216,-127946.95305473,0.00012996,2]
[325187501,1714557660240,-357.22427774,0.00012998,2]
[325187502,1714557660264,-490.34348975,0.00012998,7]
[325187503,1714557660289,-1211.30074394,0.00012998,2]
[325187504,1714557660313,-268.33424577,0.00012998,2]
[325187505,1714557660338,-3082.06843787,0.00012998,2]
[325187506,1714557660361,-184.01316538,0.00012998,2]
[325187507,1714557660385,-150.99,0.00012998,2]
[325187508,1714557660410,-1647554.76021927,0.00012999,2]
[325187509,1714557660436,-1389.0,0.00013,2]
[325187510,1714557660459,-400981.67373323,0.00013,2]
[325187511,1714557660483,-522.05340994,0.00013,2]
[325187512,1714557660510,-264833.98363202,0.00013,2]
[325187513,1714557665779,-1304.0,0.00012999,2]
[325187514,1714557665809,-2998696.0,0.00013,2]
[325187515,1714557669768,-1170.0,0.00012999,2]
[325187516,1714557669794,-2998830.0,0.00013,2]
[325187523,1714558232102,-164.7,0.00011779,3]
[325187524,1714558232114,-164.7,0.0001189,3]
[325187525,1714558232127,-250.0,0.00011998,2]
[325187526,1714558232141,-155.0,0.00011999,2]
[325187527,1714558232154,-316.0,0.00011999,2]
[325187528,1714558232166,-2139.0,0.00012,2]
[325187529,1714558232179,-5000.0,0.00012,2]
[325187530,1714558232189,-164.7,0.00012001,3]
[325187531,1714558232200,-180.61,0.00012047,2]
[325187532,1714558232212,-283.42,0.00012063,2]
[325187533,1714558232223,-165.27,0.00012081,2]
[325187534,1714558232235,-704.62,0.00012099,2]
[325187535,1714558232248,-266.57,0.00012104,2]
[325187536,1714558232260,-164.7,0.00012112,3]
[325187537,1714558232273,-730.84,0.00012147,2]
[325187538,1714558232287,-52.14992332,0.00012209,2]
[325187539,1714558232304,-107.12049738,0.00012209,2]
[325187540,1714558232315,-759.3,0.00012209,2]
[325187541,1714558232325,-164.7,0.00012223,3]
[325187542,1714558232336,-154.74,0.00012309,2]
[325187543,1714558232347,-312.23,0.00012309,2]
[325187544,1714558232360,-164.7,0.00012334,3]
[325187545,1714558232374,-502.66808472,0.00012348,2]
[325187546,1714558232389,-389.35178471,0.00012348,2]
[325187547,1714558232400,-164.7,0.00012445,3]
[325187548,1714558232412,-164.7,0.00012556,3]
[325187549,1714558232425,-164.7,0.00012667,3]
[325187550,1714558232439,-164.7,0.00012778,3]
[325187551,1714558232451,-287.71565312,0.00012869,2]
[325187552,1714558232462,-357.22427774,0.00012879,2]
[325187553,1714558232473,-1550.59718243,0.0001288,2]
[325187554,1714558233549,-500.0,0.0001288,2]
[325187556,1714558233960,-372.88887261,0.0001288,2]
[325187557,1714558233971,-1709.14612512,0.0001288,2]
[325187558,1714558233983,-384.20256361,0.0001288,2]
[325187559,1714558233994,-540.06032016,0.0001288,2]
[325187560,1714558234005,-4300.0000015,0.0001288,2]
[325187568,1714558238723,-275556.14104062,0.0001288,2]
[325187569,1714558238733,-164.7,0.00012889,3]
[325187570,1714558238742,-5868.7801,0.000129,2]
[325187571,1714558238752,-1000.0,0.000129,2]
[325187572,1714558238761,-150.99,0.000129,2]
[325187573,1714558238771,-499.99,0.000129,2]
[325187574,1714558238780,-150.0,0.000129,2]
[325187575,1714558238789,-331.56765834,0.000129,2]
[325187576,1714558238798,-1151.68896583,0.000129,2]
[325187577,1714558238807,-150.0,0.000129,2]
[325187578,1714558238817,-332.6897443,0.00012981,2]
[325187579,1714558238826,-332.6897443,0.00012981,2]
[325187580,1714558238835,-332.6897443,0.00012989,2]
[325187581,1714558238844,-332.6897443,0.00012989,2]
[325187582,1714558238854,-332.6897443,0.00012989,2]
[325187583,1714558238867,-332.6897443,0.00012989,2]
[325187584,1714558238876,-2223.76178161,0.0001299,2]
[325187585,1714558238886,-490.34348975,0.00012998,7]
[325187586,1714558238896,-184.01316538,0.00012998,2]
[325187587,1714558238908,-268.33424577,0.00012998,2]
[325187588,1714558238917,-1211.30074394,0.00012998,2]
[325187589,1714558238927,-3082.06843787,0.00012999,2]
[325187590,1714558238937,-1466.35479328,0.00012999,2]
[325187591,1714558238948,-1183.48858802,0.00012999,2]
[325187592,1714558238959,-1054.0,0.00013,2]
[325187593,1714558238969,-201300.78827659,0.00013,2]
[325187595,1714558239056,-316.34399999,0.00013,2]
[325187597,1714558239068,-84489.67108643,0.00013,2]
[325187669,1714558240126,-5736.7,0.00013,2]
[325187671,1714558240137,-57224.27659835,0.00013,2]
[325187672,1714558240550,-542.76931822,0.00013,2]
[325187673,1714558240561,-2797.02610156,0.00013,2]
[325187729,1714558243635,-712.3,0.00013,2]
[325187732,1714558243648,-701.33067573,0.00013,2]
[325187740,1714558243975,-419.48,0.00012375,2]
[325187742,1714558243985,-2435.02,0.00012999,2]
[325187778,1714558245181,-2564.98,0.00012999,2]
[325187779,1714558245191,-72651.26021742,0.00013,2]
[325187780,1714558245202,-12930.336,0.00013,2]
[325187781,1714558245214,-177394.20310116,0.00013,2]
[325187784,1714558246108,-1045.2041,0.00011899,2]
[325187786,1714558246119,-325.81,0.00012344,2]
[325187788,1714558246128,-15111.4639421,0.00013,2]
[325187790,1714558246140,-1076.07111088,0.00013,2]
[325187792,1714558246427,-155.0,0.00012999,2]
[325187793,1714558246437,-958.58851219,0.00013,2]
[325187794,1714558246451,-428.41148781,0.00013,2]
[325187795,1714558246460,-324.19851221,0.00013,2]
[325187796,1714558246471,-255.5202649,0.00013,2]
[325187798,1714558961437,-301.40321176,0.00025,60]
[325187799,1714558961462,-2106.37269282,0.0002511,30]
[325187800,1714558961495,-323.61836936,0.00027,120]
[325187801,1714558961528,-1208.0,0.00028086,30]
[325187802,1714558961554,-1385.52959951,0.0003,60]
[325187958,1714559434302,-527.47233212,0.00010999,2]
[325187959,1714559434311,-200.0,0.00011,2]
[325187960,1714559434321,-250.0,0.00011531,2]
[325187961,1714559434330,-427.31,0.00011531,2]
[325187962,1714559434340,-166.46,0.00011669,2]
[325187963,1714559434349,-155.47,0.00011734,2]
[325187964,1714559434359,-584.67,0.00011755,2]
[325187965,1714559434368,-150.0,0.0001177,3]
[325187966,1714559434378,-499.99,0.00011882,2]
[325187967,1714559434389,-299.99,0.00011882,2]
[325187968,1714559434398,-117.8245824,0.00011882,3]
[325187969,1714559434409,-32.1754176,0.00011882,3]
[325187970,1714559434419,-153.82121942,0.0001194,2]
[325187971,1714559434428,-150.99,0.0001194,2]
[325187972,1714559434437,-165.27,0.00012009,2]
[325187973,1714559434446,-22.76026371,0.0001204,2]
[325187974,1714559434458,-127.43973629,0.0001204,2]
[325187975,1714559434468,-999.99,0.0001204,2]
[325187976,1714559434477,-868.0,0.00012054,2]
[325187977,1714559434487,-180.43,0.00012059,2]
[325187978,1714559434496,-180.43,0.00012119,2]
[325187979,1714559434506,-245.12,0.00012178,2]
[325187980,1714559434515,-522.46,0.00012178,2]
[325187981,1714559434524,-419.48,0.00012178,2]
[325187982,1714559434533,-522.46,0.00012178,2]
[325187983,1714559434543,-419.48,0.00012178,2]
[325187984,1714559434553,-350.73,0.00012178,2]
[325187985,1714559434562,-522.46,0.00012178,2]
[325187986,1714559434571,-309.91,0.00012178,2]
[325187989,1714559434580,-419.48,0.00012178,2]
[325187992,1714559434589,-419.48,0.00012178,2]
[325187995,1714559434598,-153.82121942,0.0001218,2]
[325187998,1714559434607,-654.46801604,0.00012193,2]
[325188000,1714559434619,-6862.09198396,0.00012193,2]
[325188002,1714559434629,-300.19,0.000122,2]
[325188005,1714559434638,-522.46,0.000122,2]
[325188007,1714559434647,-300.56,0.000122,2]
[325188008,1714559434656,-300.0,0.000122,2]
[325188011,1714559434666,-324.6,0.000122,2]
[325188012,1714559434675,-101.02104172,0.00012278,2]
[325188015,1714559434687,-318.45895828,0.00012278,2]
[325188017,1714559434697,-155.47,0.00012345,2]
[325188019,1714559434706,-522.46,0.00012378,2]
[325188021,1714559434715,-151.6,0.00012378,2]
[325188023,1714559434725,-419.48,0.00012378,2]
[325188025,1714559434735,-612.33,0.00012378,2]
[325188027,1714559434744,-55.74704096,0.00012399,2]
[325188029,1714559434755,-94.25295904,0.00012399,2]
[325188031,1714559434764,-332.1,0.00012399,2]
[325188033,1714559434773,-300.0,0.00012399,2]
[325188035,1714559434782,-350.73,0.00012399,2]
[325188037,1714559434791,-153.82121942,0.0001242,2]
[325188039,1714559434800,-153.82121942,0.0001266,2]
[325188041,1714559434809,-150.0,0.00012697,2]
[325188043,1714559434819,-168.91,0.00012709,2]
[325188045,1714559434829,-150.0,0.0001275,2]
[325188047,1714559434838,-575.38,0.0001278,2]
[325188049,1714559434847,-1000.0,0.000128,2]
[325188051,1714559434856,-3061.81250212,0.0001288,2]
[325188069,1714559439237,-695.80000955,0.00011973,2]
[325188070,1714559439248,-5194.03999045,0.00011973,2]
[325188071,1714559439258,-20623.36784733,0.0001288,2]
[325188072,1714559439269,-16322.89185052,0.0001288,2]
[325188073,1714559439278,-1000.0,0.00012895,2]
[325188074,1714559439286,-500.0,0.00012895,2]
[325188075,1714559439296,-150.99,0.00012895,2]
[325188076,1714559439306,-1000.0,0.00012896,2]
[325188077,1714559439314,-1000.0,0.00012896,2]
[325188078,1714559439323,-500.0,0.00012896,2]
[325188079,1714559439331,-500.0,0.00012896,2]
[325188080,1714559439340,-170.89694307,0.000129,2]
[325188081,1714559439349,-377.92006347,0.000129,2]
[325188082,1714559439358,-196.88241885,0.000129,2]
[325188083,1714559439367,-170.66355813,0.000129,2]
[325188084,1714559439376,-347.954734,0.000129,2]
[325188085,1714559439390,-153.82121942,0.000129,2]
[325188086,1714559439401,-176.7536553,0.000129,2]
[325188087,1714559439410,-961.3567,0.000129,2]
[325188088,1714559439419,-39052.39419643,0.000129,2]
[325188089,1714559439431,-19279.09921561,0.000129,2]
[325188090,1714559439819,-28035.63918796,0.000129,2]
[325188091,1714559439828,-308.18820703,0.000129,2]
[325188092,1714559439838,-1000.0,0.000129,2]
[325188093,1714559439847,-7500.0,0.000129,2]
[325188094,1714559439856,-189.73207955,0.000129,2]
[325188095,1714559439865,-206.71908165,0.000129,2]
[325188096,1714559439875,-1215.71985848,0.000129,2]
[325188097,1714559439884,-331.56765834,0.000129,2]
[325188098,1714559439894,-961.12177568,0.000129,2]
[325188099,1714559439903,-277.2414536,0.00012981,2]
[325188100,1714559439912,-12181.8380015,0.00012989,2]
[325188101,1714559439921,-9897.6786618,0.00012989,2]
[325188102,1714559439931,-7613.5193221,0.00012989,2]
[325188103,1714559439940,-5329.3599825,0.00012989,2]
[325188104,1714559439949,-3045.2006428,0.00012989,2]
[325188105,1714559439958,-761.0413031,0.00012989,2]
[325188106,1714559439967,-277.2414536,0.00012989,2]
[325188107,1714559439976,-277.2414536,0.00012989,2]
[325188108,1714559439985,-277.2414536,0.00012989,2]
[325188109,1714559439995,-277.2414536,0.00012989,2]
[325188110,1714559440004,-277.2414536,0.00012989,2]
[325188111,1714559440012,-332.68974489,0.00012989,2]
[325188112,1714559440022,-2223.0,0.0001299,2]
[325188113,1714559440031,-140576.45971675,0.00012996,2]
[325188114,1714559440039,-268.33424577,0.00012998,2]
[325188115,1714559440048,-287.05052068,0.00012998,2]
[325188116,1714559440060,-924.25022326,0.00012998,2]
[325188117,1714559440069,-490.34348975,0.00012998,7]
[325188118,1714559440078,-3082.06843787,0.00012998,2]
[325188119,1714559440087,-184.01316538,0.00012998,2]
[325188120,1714559440096,-1834.36896812,0.00012999,2]
[325188121,1714559440105,-1466.35479328,0.00012999,2]
[325188122,1714559440114,-197.57076628,0.00012999,3]
[325188123,1714559440123,-10000.0,0.00012999,2]
[325188124,1714559440132,-10000.0,0.00012999,2]
[325188125,1714559440142,-10000.0,0.00012999,2]
[325188126,1714559440151,-10000.0,0.00012999,2]
[325188128,1714559440161,-1179.65659434,0.00012999,2]
[325188129,1714559440170,-1183.48858802,0.00012999,2]
[325188130,1714559440179,-1419.0,0.00013,2]
[325188131,1714559440189,-281629.05908522,0.00013,2]
[325188133,1714559440201,-500.6964493,0.00013,2]
[325188134,1714559440481,-626.26515173,0.00013,2]
[325188137,1714559440721,-474.26229339,0.00013,2]
[325188138,1714559440733,-1373.77443372,0.00013,2]
[325188139,1714559440744,-1519.95012414,0.00013,2]
[325188140,1714559440755,-3040.99171953,0.00013,2]
[325188142,1714559440968,-2552.68545287,0.00013,2]
[325188144,1714559440979,-4612.84584487,0.00013,2]
[325188146,1714559440990,-343.11198797,0.00013,2]
[325188148,1714559441001,-4906.01929106,0.00013,2]
[325188150,1714559441012,-2785.87832141,0.00013,2]
[325188242,1714559443480,-1151.68896583,0.000129,2]
[325188245,1714559443490,-299.50936174,0.00012999,2]
[325188248,1714559443499,-1173.0,0.00013,2]
[325188249,1714559443508,-3854.58579832,0.00013,2]
[325188250,1714559443643,-197505.50985089,0.00013,2]
[325188251,1714559443656,-20508.51,0.00013,2]
[325188252,1714559443668,-4331.41151788,0.00013,2]
[325188253,1714559443679,-867.53175396,0.00013,2]
[325188254,1714559443691,-1980.40151876,0.00013,2]
[325188255,1714559443902,-4581.47113473,0.00013,2]
[325188257,1714559445128,-3237.04088815,0.00013,2]
[325188289,1714559448032,-158.6415,0.0001194,2]
[325188290,1714559448042,-136.83428606,0.00013,2]
[325188291,1714559448054,-3399.39625553,0.00013,2]
[325188292,1714559448066,-5817.3,0.00013,2]
[325188293,1714559448077,-1411.67549481,0.00013,2]
[325188294,1714559448089,-169537.52260589,0.00013,2]
[325188295,1714559448244,-440.2147745,0.00013,2]
[325188296,1714559448257,-484.42647708,0.00013,2]
[325188297,1714559448269,-4714.52247968,0.00013,2]
[325188298,1714559448281,-581.82664788,0.00013,2]
[325188299,1714559448293,-2026.77504163,0.00013,2]
[325188300,1714559448305,-281.0,0.00013,2]
[325188301,1714559448317,-532.31571286,0.00013,2]
[325188302,1714559448328,-855.93,0.00013,2]
[325188303,1714559448339,-2118.30271669,0.00013,2]
[325188304,1714559448351,-503.11439492,0.00013,2]
[325188305,1714559448362,-1937.31003432,0.00013,2]
[325188307,1714559620766,1000.0,0.00025,120]
[325188308,1714560021927,-155.0,0.00010898,2]
[325188309,1714560021963,-972.4324,0.00010899,2]
[325188310,1714560021987,-2872.5676,0.00011531,2]
[325188311,1714560022767,-4000.0,0.00011531,2]
[325188312,1714560023167,-4000.0,0.00011531,2]
[325188313,1714560023874,-4000.0,0.00011531,2]
[325188314,1714560024005,-4000.0,0.00011531,2]
[325188315,1714560024514,-4000.0,0.00011531,2]
[325188316,1714560041796,-490.4724,0.00011531,2]
[325188317,1714560077353,2543.06730662,8.648e-05,2]
[325188318,1714560101233,966.46029338,8.648e-05,2]
[325188319,1714560101259,1576.60701324,8.648e-05,2]
[325188320,1714560121240,150.0,6.486e-05,2]
[325188321,1714560121260,150.0,6.486e-05,2]
[325188322,1714560121280,298.5327147,6.486e-05,2]
[325188323,1714560121302,1127.85986865,6.486e-05,2]
[325188324,1714560177250,2543.06730662,4.865e-05,2]
[325188325,1714560197239,830.05320552,4.865e-05,2]
[325188402,1714560632775,-210.77904721,0.00011527,2]
[325188403,1714560632785,-329.61778079,0.00011528,2]
[325188404,1714560632797,-285.099995,0.00011528,2]
[325188407,1714560632809,-1167.12147944,0.00011528,2]
[325188409,1714560632819,-415.162403,0.00011529,2]
[325188411,1714560632828,-298.903122,0.00011531,2]
[325188412,1714560632837,-179.79467674,0.00011531,2]
[325188414,1714560632847,-150.21,0.00011556,2]
[325188415,1714560632856,-532.26,0.00011684,2]
[325188416,1714560632865,-167.41,0.00011732,2]
[325188417,1714560632875,-1302.81,0.00011891,2]
[325188418,1714560632886,-165.27,0.00011922,2]
[325188419,1714560632896,-150.0,0.00011945,2]
[325188420,1714560632906,-299.99,0.00011945,2]
[325188421,1714560632915,-2748.73784033,0.00011969,2]
[325188422,1714560632925,-150.0,0.00011969,2]
[325188423,1714560632939,-213.25,0.0001197,2]
[325188424,1714560632950,-23900.0,0.0001197,2]
[325188425,1714560632959,-49429.11901753,0.0001197,2]
[325188426,1714560632968,-150.99,0.0001197,2]
[325188427,1714560632978,-15005.49836602,0.00012,2]
[325188428,1714560632987,-467.74,0.00012012,2]
[325188429,1714560632996,-419.48,0.000121,2]
[325188430,1714560633005,-300.0,0.000121,2]
[325188431,1714560633015,-10000.0,0.00012159,2]
[325188432,1714560633024,-307.46,0.000122,2]
[325188433,1714560633033,-150.0,0.000122,2]
[325188434,1714560633043,-150.0,0.00012368,2]
[325188435,1714560633052,-150.0,0.00012368,2]
[325188436,1714560633062,-350.73,0.00012368,2]
[325188437,1714560633071,-522.46,0.00012368,2]
[325188438,1714560633080,-350.73,0.00012368,2]
[325188439,1714560633089,-522.46,0.00012368,2]
[325188440,1714560633098,-350.73,0.00012368,2]
[325188441,1714560633107,-522.46,0.00012368,2]
[325188442,1714560633117,-522.46,0.00012368,2]
[325188443,1714560633126,-350.73,0.00012368,2]
[325188444,1714560633135,-522.46,0.00012368,2]
[325188445,1714560633144,-522.46,0.00012368,2]
[325188446,1714560633154,-522.46,0.00012368,2]
[325188447,1714560633163,-3350.646,0.00012404,2]
[325188448,1714560633172,-837.33,0.00012478,2]
[325188449,1714560633182,-325.88,0.00012478,2]
[325188450,1714560633191,-1044.78,0.00012478,2]
[325188451,1714560633201,-350.73,0.00012478,2]
[325188452,1714560633212,-158.33,0.00012521,2]
[325188453,1714560633224,-499.99,0.00012521,2]
[325188454,1714560633235,-150.0,0.000126,2]
[325188455,1714560633244,-150.0,0.00012681,2]
[325188456,1714560633254,-1000.0,0.000127,2]
[325188457,1714560633263,-1219.461,0.000128,2]
[325188458,1714560633272,-5868.7801,0.000128,2]
[325188459,1714560633281,-162.08180539,0.000128,2]
[325188460,1714560633290,-3603.62194363,0.0001288,2]
[325188461,1714560633299,-1000.0,0.00012896,2]
[325188462,1714560633308,-500.0,0.00012896,2]
[325188463,1714560633317,-823.75767315,0.00012898,2]
[325188464,1714560633327,-301.64881617,0.00012898,2]
[325188465,1714560633335,-2186.81775382,0.00012898,2]
[325188466,1714560633344,-520.52085707,0.00012898,2]
[325188467,1714560633353,-2148.65195496,0.00012898,2]
[325188468,1714560633363,-243.93019072,0.00012899,2]
[325188469,1714560633372,-11998.64492343,0.00012899,2]
[325188470,1714560633380,-174.2168668,0.000129,2]
[325188471,1714560633390,-222.00545377,0.000129,2]
[325188472,1714560633398,-1065.0819,0.000129,2]
[325188473,1714560633407,-1000.0,0.000129,2]
[325188474,1714560633417,-124012.9661,0.000129,2]